Workbook

Sheet Summary
A1: GENERAL OPERATING ACCOUNT
A2: January 2021 - December 2021
A4: MONTH | B4: Beginning Balance | C4: Deposits and Other Credits | D4: Withdrawals and Other Debits | E4: Ending Balance
A5: JANUARY | B5: 13,734,770.91 | C5: 105,393,387.04 | D5: 68,235,073.24 | E5: =B5+C5-D5 -> 50,893,084.71
A6: FEBRUARY | B6: =E5 -> 50,893,084.71 | C6: 9,872,729.80 | D6: 45,928,081.76 | E6: =B6+C6-D6 -> 14,837,732.75
A7: MARCH | B7: =E6 -> 14,837,732.75 | C7: 18,718,967.22 | D7: 22,451,177.52 | E7: 11,105,522.45
A8: APRIL | B8: 11,105,522.45 | C8: 17,412,315.67 | D8: 20,809,920.69 | E8: 7,707,917.43
A9: MAY | B9: 7,707,917.43 | C9: 23,917,649.75 | D9: 22,100,994.78 | E9: 9,524,572.40
A10: JUNE | B10: 9,524,572.40 | C10: 35,308,793.03 | D10: 26,631,669.52 | E10: 18,201,695.91
A11: JULY | B11: 18,201,695.91 | C11: 23,880,718.06 | D11: 29,452,056.63 | E11: 12,630,357.34
A12: AUGUST | B12: 12,630,357.34 | C12: 14,479,646.28 | D12: 18,252,072.56 | E12: 8,857,931.06
A13: SEPTEMBER | B13: 8,857,931.06 | C13: 25,318,276.17 | D13: 20,869,900.29 | E13: 13,306,306.94
A14: OCTOBER | B14: 13,306,306.94 | C14: 20,262,748.12 | D14: 24,508,036.16 | E14: 9,061,018.90
A15: NOVEMBER | B15: 9,061,018.90 | C15: 24,681,056.01 | D15: 19,702,739.38 | E15: 14,039,335.53
A16: DECEMBER | B16: 14,039,335.53 | C16: 122,788,428.41 | D16: 84,032,405.93 | E16: 52,795,358.01
C18: =SUM(C5:C17) -> 442,034,715.56 | D18: =SUM(D5:D17) -> 402,974,128.46
A21: FLEX ACCOUNT INSURANCE BANK SUMMARY
A22: January 2021 - December 2021
A24: MONTH | B24: Beginning Balance | C24: Deposits and Other Credits | D24: Withdrawals and Other Debits | E24: Ending Balance
A25: JANUARY | B25: 234,873.13 | C25: 68,390.58 | D25: 55,757.35 | E25: =B25+C25-D25 -> 247,506.36
A26: FEBRUARY | B26: =E25 -> 247,506.36 | C26: 22,940.69 | D26: 34,231.22 | E26: =B26+C26-D26 -> 236,215.83
A27: MARCH | B27: =E26 -> 236,215.83 | C27: 68,596.59 | D27: 39,899.64 | E27: 264,912.78
A28: APRIL | B28: 264,912.78 | C28: 45,738.25 | D28: 45,323.84 | E28: 265,327.19
A29: MAY | B29: 265,327.19 | C29: 46,042.69 | D29: 27,771.78 | E29: 283,598.10
A30: JUNE | B30: 283,598.10 | C30: 98,476.98 | D30: 49,456.69 | E30: 332,618.39
A31: JULY | B31: 332,618.39 | C31: 9,109.11 | D31: 37,108.60 | E31: 304,618.90
A32: AUGUST | B32: 304,618.90 | C32: 28,193.56 | D32: 34,783.31 | E32: 298,029.15
A33: SEPTEMBER | B33: 298,029.15 | C33: 25,826.77 | D33: 36,044.40 | E33: 287,811.52
A34: OCTOBER | B34: 287,811.52 | C34: 69,535.08 | D34: 26,492.90 | E34: 330,853.70
A35: NOVEMBER | B35: 330,853.70 | C35: 46,395.61 | D35: 53,983.23 | E35: 323,266.08
A36: DECEMBER | B36: 323,266.08 | C36: 24,854.15 | D36: 60,031.42 | E36: 288,088.81
C38: =SUM(C25:C37) -> 554,100.06 | D38: =SUM(D25:D37) -> 500,884.38
A41: SELF INSURANCE BANK SUMMARY
A42: January 2021 - December 2021
A44: MONTH | B44: Beginning Balance | C44: Deposits and Other Credits | D44: Withdrawals and Other Debits | E44: Ending Balance
A45: JANUARY | B45: 1,653,670.12 | C45: 4,516,241.49 | D45: 2,641,664.57 | E45: =B45+C45-D45 -> 3,528,247.04
A46: FEBRUARY | B46: =E45 -> 3,528,247.04 | C46: 1,668,445.78 | D46: 2,471,911.97 | E46: =B46+C46-D46 -> 2,724,780.85
A47: MARCH | B47: =E46 -> 2,724,780.85 | C47: 3,304,154.52 | D47: 2,524,104.53 | E47: 3,504,830.84
A48: APRIL | B48: 3,504,830.84 | C48: 2,834,204.84 | D48: 2,646,550.63 | E48: 3,692,485.05
A49: MAY | B49: 3,692,485.05 | C49: 2,285,005.15 | D49: 2,503,360.61 | E49: 3,474,129.59
A50: JUNE | B50: 3,474,129.59 | C50: 5,185,078.29 | D50: 3,446,410.93 | E50: 5,212,796.95
A51: JULY | B51: 5,212,796.95 | C51: 1,310,072.44 | D51: 3,387,385.96 | E51: 3,135,483.43
A52: AUGUST | B52: 3,135,483.43 | C52: 1,629,298.76 | D52: 2,640,927.22 | E52: 2,123,854.97
A53: SEPTEMBER | B53: 2,123,854.97 | C53: 1,620,738.42 | D53: 2,920,981.69 | E53: 823,611.70
A54: OCTOBER | B54: 823,611.70 | C54: 3,636,515.15 | D54: 2,389,128.78 | E54: 2,070,998.07
A55: NOVEMBER | B55: 2,070,998.07 | C55: 2,523,111.04 | D55: 2,679,195.35 | E55: 1,914,913.76
A56: DECEMBER | B56: 1,914,913.76 | C56: 1,632,530.62 | D56: 3,251,568.15 | E56: 295,876.23
C58: =SUM(C45:C57) -> 32,145,396.50 | D58: =SUM(D45:D57) -> 33,503,190.39
